lending/lending_fUSD_20250621
["ID","MTS","AMOUNT","RATE_DAILY","PERIOD"]
[366856334,1750519838945,-245.04415365,0.00024699,2]
[366856335,1750519838958,-500.0,0.00024699,2]
[366856337,1750519838968,-500.0,0.00024699,2]
[366856339,1750519838978,-500.0,0.00024699,2]
[366856341,1750519838987,-294.74766466,0.00024699,2]
[366856343,1750519838997,-939.66404766,0.00024699,2]
[366856345,1750519839007,-309.39535432,0.00024699,2]
[366856347,1750519839017,-939.66404766,0.00024699,2]
[366856349,1750519839027,-939.66404766,0.00024699,2]
[366856352,1750519839037,-939.66404766,0.00024699,2]
[366856354,1750519839047,-939.66404766,0.00024699,2]
[366856357,1750519839057,-806701.35987303,0.000247,2]
[366856359,1750519839066,-245.32646373,0.00024706,2]
[366856361,1750519839076,-694.50846782,0.00024831,12]
[366856364,1750519839089,-396.43732504,0.0002488,7]
[366856365,1750519839099,-245.32646373,0.00024929,2]
[366856367,1750519839108,-166.27,0.00024963,2]
[366856369,1750519839119,-151.54616944,0.00024965,2]
[366856371,1750519839129,-151.0,0.00024965,2]
[366856373,1750519839139,-150.99,0.0002498,2]
[366856375,1750519839148,-150.99,0.0002498,2]
[366856377,1750519839158,-4335.77,0.0002498,2]
[366856380,1750519839167,-9999.99,0.0002498,2]
[366856382,1750519839177,-9999.99,0.0002498,2]
[366856384,1750519839188,-999.99,0.0002498,2]
[366856386,1750519839197,-3000.0,0.00025,2]
[366856388,1750519839208,-201.51112756,0.00025,2]
[366856390,1750519839217,-37682.19397023,0.00025,2]
[366856392,1750519839227,-1732.9340371,0.00025,2]
[366856394,1750519839236,-200.0,0.00025,2]
[366856396,1750519839245,-2955.47171375,0.00025,2]
[366856398,1750519839254,-4029.01125864,0.00025,2]
[366856400,1750519839264,-1772.64320346,0.00025,2]
[366856402,1750519839274,-931.58364248,0.00025,7]
[366856404,1750519839283,-1033.45951923,0.00025,2]
[366856406,1750519839293,-1114.61364518,0.00025,5]
[366856408,1750519839302,-162.41650355,0.00025,2]
[366856410,1750519839311,-3281.8832695,0.000251,2]
[366856412,1750519839321,-2500.0,0.00025149,2]
[366856414,1750519839330,-245.32646373,0.00025152,2]
[366856416,1750519839342,-194.58,0.00025179,120]
[366856418,1750519839351,-666.0,0.00025179,2]
[366856420,1750519839360,-17528.1925855,0.00025239,3]
[366856422,1750519839369,-202.0,0.00025245,10]
[366856424,1750519839379,-638.0,0.00025249,2]
[366856426,1750519839388,-803.0,0.00025249,2]
[366856428,1750519839398,-591.0,0.00025249,2]
[366856430,1750519839407,-1278.0,0.00025249,2]
[366856432,1750519839417,-2005.0,0.00025249,2]
[366856434,1750519839427,-928.0,0.00025249,2]
[366856436,1750519839436,-559.0,0.00025249,2]
[366856438,1750519839445,-1676.0,0.00025249,2]
[366856440,1750519839455,-1161.0,0.00025249,2]
[366856442,1750519839464,-3335.0,0.00025249,2]
[366856444,1750519839473,-946.0,0.00025249,2]
[366856446,1750519839483,-7135.0,0.00025249,2]
[366856448,1750519839493,-156.0,0.00025249,2]
[366856450,1750519839503,-694.50846782,0.00025314,12]
[366856452,1750519839512,-215.0738,0.00025343,2]
[366856454,1750519839522,-245.32646373,0.00025376,2]
[366856456,1750519839531,-164.35,0.00025515,2]
[366856458,1750519839540,-500.0,0.00025542,2]
[366856460,1750519839549,-245.32646373,0.00025599,2]
[366856462,1750519839559,-2655.26784665,0.000256,3]
[366856464,1750519839568,-200.0,0.00025609,2]
[366856466,1750519839577,-23900.0,0.00025721,2]
[366856468,1750519839587,-159.85,0.0002575,2]
[366856470,1750519839597,-694.50846782,0.00025797,13]
[366856472,1750519839606,-9885.75424041,0.000258,2]
[366856474,1750519839615,-251.16,0.00025866,2]
[366856476,1750519839625,-2647.04227885,0.00025873,2]
[366856478,1750519839634,-2000.0,0.00025883,60]
[366856480,1750519839643,-300.41,0.00025888,2]
[366856482,1750519839656,-17528.1925855,0.0002599,3]
[366856484,1750519839666,-582.68100929,0.0002599,2]
[366856486,1750519839675,-2000.0,0.00026,2]
[366856488,1750519839684,-2000.0,0.00026,2]
[366856490,1750519839693,-2000.0,0.00026,2]
[366856492,1750519839702,-2000.0,0.00026,2]
[366856494,1750519839712,-2000.0,0.00026,2]
[366856496,1750519839721,-608.4351,0.00026,2]
[366856498,1750519839730,-4390.43994478,0.00026,2]
[366856500,1750519839740,-2000.0,0.00026,2]
[366856502,1750519839750,-1425.0864224,0.00026,2]
[366856504,1750519839759,-309.80503377,0.00026,2]
[366856506,1750519839768,-155.27,0.00026088,2]
[366856508,1750519839778,-1000.0,0.0002609,2]
[366856510,1750519839787,-1866.45,0.000261,2]
[366856512,1750519839797,-415.0,0.00026107,2]
[366856514,1750519839807,-400.0,0.00026221,2]
[366856516,1750519839816,-166.27,0.00026265,2]
[366856518,1750519839825,-694.50846782,0.00026279,14]
[366856520,1750519839835,-352.22249227,0.00026321,2]
[366856522,1750519839844,-415.0,0.00026322,2]
[366856524,1750519839854,-156.587,0.00026334,2]
[366856526,1750519839863,-2647.0422788,0.0002635,2]
[366856528,1750519839873,-87640.9629273,0.0002639,3]
[366856530,1750519839882,-165503.58124916,0.000264,2]
[366856532,1750519839892,-3549.92667078,0.00026421,2]
[366856533,1750519839903,-202.0,0.00026486,12]
[366856534,1750519839913,-951.73,0.0002655,2]
[366856535,1750519839923,-951.73,0.00026557,2]
[366856536,1750519839933,-951.73,0.00026564,2]
[366856537,1750519839943,-951.73,0.00026571,2]
[366856538,1750519839953,-951.73,0.00026578,2]
[366856539,1750519839964,-951.73,0.00026585,2]
[366856540,1750519839974,-951.73,0.00026592,2]
[366856541,1750519839984,-1000.0,0.00026595,2]
[366856542,1750519839994,-2000.0,0.00026598,2]
[366856544,1750519840004,-951.73,0.00026599,2]
[366856545,1750519840014,-951.73,0.00026606,2]
[366856546,1750519840024,-951.73,0.00026613,2]
[366856547,1750519840034,-951.73,0.0002662,2]
[366856548,1750519840044,-17528.1925855,0.00026624,3]
[366856549,1750519840054,-150.0,0.00026626,2]
[366856550,1750519840065,-951.73,0.00026627,2]
[366856551,1750519840075,-951.73,0.00026634,2]
[366856552,1750519840088,-278.750864,0.00026638,2]
[366856553,1750519840098,-951.73,0.00026641,2]
[366856554,1750519840109,-951.73,0.00026648,2]
[366856555,1750519840119,-951.73,0.00026655,2]
[366856557,1750519840129,-951.73,0.00026662,2]
[366856558,1750519840139,-150.0,0.00026665,2]
[366856560,1750519840148,-951.73,0.00026669,2]
[366856561,1750519840158,-951.73,0.00026676,2]
[366856562,1750519840168,-951.73,0.00026683,2]
[366856564,1750519840178,-223.0315306,0.00026712,2]
[366856565,1750519840189,-694.50846782,0.00026762,15]
[366856566,1750519840199,-150.0,0.00026803,2]
[366856567,1750519840208,-3549.92667076,0.00026808,2]
[366856568,1750519840218,-2647.0422788,0.00026827,2]
[366856569,1750519840228,-352.22249226,0.00026885,2]
[366856570,1750519840238,-150.0,0.00026919,2]
[366856571,1750519840248,-150.0,0.00026923,2]
[366856572,1750519840258,-453.0,0.0002697,120]
[366856573,1750519840268,-150.5,0.0002697,120]
[366856574,1750519840278,-453.0,0.0002698,120]
[366856575,1750519840288,-150.5,0.0002698,120]
[366856576,1750519840297,-150.0,0.00026987,2]
[366856577,1750519840307,-453.0,0.0002699,120]
[366856578,1750519840316,-150.5,0.0002699,120]
[366856579,1750519840326,-400.0,0.00026999,2]
[366856580,1750519840338,-985.23977103,0.00027,2]
[366856581,1750519840348,-250.0,0.00027,2]
[366856582,1750519840358,-1004.69320446,0.00027,2]
[366856583,1750519840367,-10415.70446286,0.00027,2]
[366856584,1750519840377,-569694.58317637,0.00027,2]
[366856585,1750519840386,-400.0,0.00027,2]
[366856586,1750519840395,-415.0,0.0002704,2]
[366856587,1750519840404,-180.0,0.00027093,2]
[366856588,1750519840414,-150.0,0.00027108,2]
[366856589,1750519840424,-150.0,0.00027123,2]
[366856590,1750519840433,-150.0,0.00027183,2]
[366856591,1750519840443,-3549.92667076,0.00027194,2]
[366856592,1750519840452,-243.516087,0.00027218,7]
[366856593,1750519840461,-243.516087,0.00027218,7]
[366856594,1750519840471,-694.50846782,0.00027245,16]
[366856595,1750519840480,-2647.0422788,0.00027304,2]
[366856596,1750519840491,-200.0,0.00027311,2]
[366856597,1750519840500,-17528.1925855,0.00027387,3]
[366856598,1750519840509,-9644.05540358,0.00027387,3]
[366856599,1750519840518,-300.0,0.00027397,2]
[366856600,1750519840527,-150.0,0.00027397,2]
[366856601,1750519840537,-164.74,0.00027397,80]
[366856602,1750519840547,-6207.16,0.00027397,2]
[366856603,1750519840558,-2465.31,0.00027397,2]
[366856604,1750519840568,-15519.8,0.00027397,2]
[366856605,1750519840578,-150.0,0.00027408,2]
[366856606,1750519840588,-4822.02770179,0.00027422,3]
[366856607,1750519840598,-605.6317,0.00027432,2]
[366856608,1750519840607,-352.22249226,0.0002745,2]
[366856609,1750519840617,-376.0,0.000275,2]
[366856610,1750519840627,-769.0,0.000275,2]
[366856611,1750519840637,-238.0,0.000275,2]
[366856612,1750519840649,-415.0,0.00027512,2]
[366856613,1750519840659,-500.0,0.00027534,2]
[366856614,1750519840668,-500.0,0.00027534,2]
[366856615,1750519840678,-500.0,0.00027534,2]
[366856616,1750519840688,-150.0,0.00027534,2]
[366856617,1750519840699,-500.0,0.00027534,2]
[366856618,1750519840708,-150.0,0.00027534,2]
[366856619,1750519840718,-150.0,0.00027537,2]
[366856620,1750519840729,-150.0,0.00027541,2]
[366856621,1750519840739,-500.0,0.00027561,2]
[366856622,1750519840748,-508.14457128,0.00027561,2]
[366856623,1750519840758,-500.0,0.00027561,2]
[366856624,1750519840768,-553.28165186,0.00027561,2]
[366856625,1750519840777,-150.0,0.00027562,2]
[366856626,1750519840786,-166.27,0.00027567,2]
[366856628,1750519840797,-4822.02770179,0.00027571,3]
[366856630,1750519840806,-3549.92667076,0.00027581,2]
[366856632,1750519840816,-1000.0,0.00027582,2]
[366856634,1750519840826,-500.0,0.00027589,2]
[366856646,1750519841060,-500.0,0.00027589,2]
[366856647,1750519841115,-1000.0,0.00027596,2]
[366856648,1750519841126,-2000.0,0.00027599,2]
[366856649,1750519841137,-500.0,0.00027616,2]
[366856650,1750519841147,-500.0,0.00027616,2]
[366856651,1750519841157,-164.35,0.00027641,2]
[366856652,1750519841170,-304.0419375,0.00027644,2]
[366856653,1750519841180,-500.0,0.00027644,2]
[366856654,1750519841190,-500.0,0.00027671,2]
[366856655,1750519841200,-150.0,0.00027675,2]
[366856656,1750519841210,-17528.1925855,0.00027686,3]
[366856657,1750519841219,-1323.0,0.00027696,5]
[366856658,1750519841230,-500.0,0.00027698,2]
[366856659,1750519841241,-5025.88050473,0.000277,2]
[366856660,1750519841251,-162.380719,0.00027703,2]
[366856661,1750519841260,-500.0,0.00027726,2]
[366856662,1750519841270,-694.50846782,0.00027728,17]
[366856663,1750519841279,-202.0,0.00027728,14]
[366856664,1750519841290,-150.0,0.00027741,2]
[366856665,1750519841299,-500.0,0.00027753,2]
[366856666,1750519841309,-4822.02770179,0.00027771,3]
[366856667,1750519841318,-500.0,0.00027781,2]
[366856668,1750519841327,-2647.0422788,0.00027781,2]
[366856669,1750519841338,-150.0,0.00027796,2]
[366856670,1750519841348,-150.0,0.00027802,2]
[366856671,1750519841358,-150.0,0.00027805,2]
[366856672,1750519841367,-150.0,0.00027805,2]
[366856673,1750519841377,-500.0,0.00027808,2]
[366856674,1750519841387,-500.0,0.00027835,2]
[366856675,1750519841396,-415.0,0.00027847,2]
[366856676,1750519841406,-150.0,0.00027853,2]
[366856677,1750519841417,-500.0,0.00027863,2]
[366856678,1750519841426,-150.0,0.00027868,2]
[366856679,1750519841436,-150.0,0.00027868,2]
[366856680,1750519841447,-355.03,0.0002787,2]
[366856681,1750519841457,-1028.34530853,0.00027878,5]
[366856682,1750519841466,-500.0,0.0002788,4]
[366856683,1750519841476,-500.0,0.0002788,4]
[366856684,1750519841485,-52584.5777564,0.0002789,3]
[366856685,1750519841495,-57864.3324215,0.0002789,3]
[366856686,1750519841504,-500.0,0.0002789,2]
[366856687,1750519841514,-117028.25623283,0.000279,2]
[366856688,1750519841523,-1200.0,0.000279,10]
[366856689,1750519841532,-480.81427442,0.00027918,2]
[366856690,1750519841542,-4822.02770179,0.00027957,3]
[366856691,1750519841553,-3549.92667076,0.00027967,2]
[366856692,1750519841562,-415.0,0.00027981,2]
[366856693,1750519841572,-500.0,0.0002799,2]
[366856694,1750519841582,-500.0,0.0002799,2]
[366856695,1750519841592,-500.0,0.0002799,2]
[366856696,1750519841602,-500.0,0.0002799,2]
[366856697,1750519841612,-500.0,0.0002799,2]
[366856698,1750519841622,-500.0,0.0002799,2]
[366856699,1750519841632,-500.0,0.0002799,2]
[366856700,1750519841642,-500.0,0.0002799,2]
[366856701,1750519841654,-70112.7703419,0.0002799,3]
[366856702,1750519841664,-57864.3324215,0.0002799,3]
[366856703,1750519841674,-500.0,0.0002799,2]
[366856704,1750519841684,-150.0,0.00027995,2]
[366856705,1750519841693,-4822.02770179,0.00027997,3]
[366856706,1750519841704,-1000.0,0.00028,28]
[366856707,1750519841714,-500.0,0.00028,2]
[366856708,1750519841724,-500.0,0.00028,2]
[366856709,1750519841734,-500.0,0.00028,2]
[366856710,1750519841744,-500.0,0.00028,2]
[366856711,1750519841753,-500.0,0.00028,2]
[366856712,1750519841763,-500.0,0.00028,2]
[366856713,1750519841772,-500.0,0.00028,2]
[366856714,1750519841782,-500.0,0.00028,2]
[366856715,1750519841792,-500.0,0.00028,2]
[366856716,1750519841802,-500.0,0.00028,2]
[366856717,1750519841812,-500.0,0.00028,2]
[366856718,1750519841821,-500.0,0.00028,2]
[366856719,1750519841830,-500.0,0.00028,2]
[366856720,1750519841843,-500.0,0.00028,2]
[366856721,1750519841852,-500.0,0.00028,2]
[366856722,1750519841863,-500.0,0.00028,2]
[366856723,1750519841872,-500.0,0.00028,2]
[366856724,1750519841883,-500.0,0.00028,2]
[366856725,1750519841893,-500.0,0.00028,2]
[366856726,1750519841902,-500.0,0.00028,2]
[366856727,1750519841912,-500.0,0.00028,2]
[366856728,1750519841922,-500.0,0.00028,2]
[366856729,1750519841933,-500.0,0.00028,2]
[366856730,1750519841943,-500.0,0.00028,2]
[366856731,1750519841953,-500.0,0.00028,2]
[366856732,1750519841963,-500.0,0.00028,2]
[366856733,1750519841973,-500.0,0.00028,2]
[366856734,1750519841983,-500.0,0.00028,2]
[366856735,1750519841994,-500.0,0.00028,2]
[366856736,1750519842004,-500.0,0.00028,2]
[366856737,1750519842013,-500.0,0.00028,2]
[366856738,1750519842023,-500.0,0.00028,2]
[366856739,1750519842033,-500.0,0.00028,2]
[366856740,1750519842042,-500.0,0.00028,2]
[366856741,1750519842052,-500.0,0.00028,2]
[366856742,1750519842062,-500.0,0.00028,2]
[366856743,1750519842072,-500.0,0.00028,2]
[366856744,1750519842081,-500.0,0.00028,2]
[366856745,1750519842093,-500.0,0.00028,2]
[366856746,1750519842103,-500.0,0.00028,2]
[366856747,1750519842113,-500.0,0.00028,2]
[366856748,1750519842122,-500.0,0.00028,2]
[366856749,1750519842132,-500.0,0.00028,2]
[366856750,1750519842142,-500.0,0.00028,2]
[366856751,1750519842151,-500.0,0.00028,2]
[366856752,1750519842161,-500.0,0.00028,2]
[366856753,1750519842170,-500.0,0.00028,2]
[366856754,1750519842180,-500.0,0.00028,2]
[366856755,1750519842189,-500.0,0.00028,2]
[366856756,1750519842199,-500.0,0.00028,2]
[366856757,1750519842209,-500.0,0.00028,2]
[366856758,1750519842219,-500.0,0.00028,2]
[366856759,1750519842228,-500.0,0.00028,2]
[366856760,1750519842238,-500.0,0.00028,2]
[366856761,1750519842247,-500.0,0.00028,2]
[366856762,1750519842257,-500.0,0.00028,2]
[366856763,1750519842266,-500.0,0.00028,2]
[366856764,1750519842276,-500.0,0.00028,2]
[366856765,1750519842285,-500.0,0.00028,2]
[366856766,1750519842294,-500.0,0.00028,2]
[366856767,1750519842304,-500.0,0.00028,2]
[366856768,1750519842313,-500.0,0.00028,2]
[366856769,1750519842322,-500.0,0.00028,2]
[366856770,1750519842332,-500.0,0.00028,2]
[366856771,1750519842342,-500.0,0.00028,2]
[366856772,1750519842351,-500.0,0.00028,2]
[366856773,1750519842361,-500.0,0.00028,2]
[366856774,1750519842370,-500.0,0.00028,2]
[366856775,1750519842380,-500.0,0.00028,2]
[366856776,1750519842390,-500.0,0.00028,2]
[366856777,1750519842400,-500.0,0.00028,2]
[366856778,1750519842410,-500.0,0.00028,2]
[366856779,1750519842421,-500.0,0.00028,2]
[366856780,1750519842431,-500.0,0.00028,2]
[366856781,1750519842441,-500.0,0.00028,2]
[366856782,1750519842452,-500.0,0.00028,2]
[366856783,1750519842462,-500.0,0.00028,2]
[366856784,1750519842471,-649.0,0.00028,2]
[366856785,1750519842481,-500.0,0.00028,2]
[366856786,1750519842491,-500.0,0.00028,2]
[366856787,1750519842500,-500.0,0.00028,2]
[366856788,1750519842510,-500.0,0.00028,2]
[366856789,1750519842519,-500.0,0.00028,2]
[366856790,1750519842529,-500.0,0.00028,2]
[366856791,1750519842539,-500.0,0.00028,2]
[366856792,1750519842548,-500.0,0.00028,2]
[366856793,1750519842558,-500.0,0.00028,2]
[366856794,1750519842568,-500.0,0.00028,2]
[366856795,1750519842579,-500.0,0.00028,2]
[366856796,1750519842588,-500.0,0.00028,2]
[366856797,1750519842598,-500.0,0.00028,2]
[366856798,1750519842608,-500.0,0.00028,2]
[366856799,1750519842618,-500.0,0.00028,2]
[366856800,1750519842627,-500.0,0.00028,2]
[366856801,1750519842637,-500.0,0.00028,2]
[366856802,1750519842648,-500.0,0.00028,2]
[366856803,1750519842660,-500.0,0.00028,2]
[366856804,1750519842670,-500.0,0.00028,2]
[366856805,1750519842679,-500.0,0.00028,2]
[366856806,1750519842690,-500.0,0.00028,2]
[366856807,1750519842702,-500.0,0.00028,2]
[366856808,1750519842711,-500.0,0.00028,2]
[366856809,1750519842721,-500.0,0.00028,2]
[366856810,1750519842730,-500.0,0.00028,2]
[366856811,1750519842739,-500.0,0.00028,2]
[366856812,1750519842749,-500.0,0.00028,2]
[366856813,1750519842759,-500.0,0.00028,2]
[366856814,1750519842769,-500.0,0.00028,2]
[366856815,1750519842777,-500.0,0.00028,2]
[366856816,1750519842786,-500.0,0.00028,2]
[366856817,1750519842796,-500.0,0.00028,2]
[366856818,1750519842805,-500.0,0.00028,2]
[366856819,1750519842815,-500.0,0.00028,2]
[366856820,1750519842826,-500.0,0.00028,2]
[366856821,1750519842836,-500.0,0.00028,2]
[366856822,1750519842845,-500.0,0.00028,2]
[366856823,1750519842855,-500.0,0.00028,2]
[366856824,1750519842865,-500.0,0.00028,2]
[366856825,1750519842875,-500.0,0.00028,2]
[366856826,1750519842884,-500.0,0.00028,2]
[366856827,1750519842894,-500.0,0.00028,2]
[366856828,1750519842904,-500.0,0.00028,2]
[366856829,1750519842914,-500.0,0.00028,2]
[366856830,1750519842924,-500.0,0.00028,2]
[366856831,1750519842933,-500.0,0.00028,2]
[366856832,1750519842944,-500.0,0.00028,2]
[366856833,1750519842957,-500.0,0.00028,2]
[366856834,1750519842969,-500.0,0.00028,2]
[366856835,1750519842979,-500.0,0.00028,2]
[366856836,1750519842990,-500.0,0.00028,2]
[366856837,1750519843000,-500.0,0.00028,2]
[366856838,1750519843010,-500.0,0.00028,2]
[366856839,1750519843021,-500.0,0.00028,2]
[366856840,1750519843030,-500.0,0.00028,2]
[366856841,1750519843039,-500.0,0.00028,2]
[366856842,1750519843049,-500.0,0.00028,2]
[366856843,1750519843059,-500.0,0.00028,2]
[366856844,1750519843068,-500.0,0.00028,2]
[366856845,1750519843078,-500.0,0.00028,2]
[366856846,1750519843087,-500.0,0.00028,2]
[366856847,1750519843097,-500.0,0.00028,2]
[366856848,1750519843106,-500.0,0.00028,2]
[366856849,1750519843116,-500.0,0.00028,2]
[366856850,1750519843127,-500.0,0.00028,2]
[366856851,1750519843137,-500.0,0.00028,2]
[366856852,1750519843147,-500.0,0.00028,2]
[366856853,1750519843157,-500.0,0.00028,2]
[366856854,1750519843167,-500.0,0.00028,2]
[366856855,1750519843176,-500.0,0.00028,2]
[366856856,1750519843186,-500.0,0.00028,2]
[366856857,1750519843196,-500.0,0.00028,2]
[366856858,1750519843206,-500.0,0.00028,2]
[366856859,1750519843215,-500.0,0.00028,2]
[366856860,1750519843225,-500.0,0.00028,2]
[366856861,1750519843235,-500.0,0.00028,2]
[366856862,1750519843244,-500.0,0.00028,2]
[366856863,1750519843254,-500.0,0.00028,2]
[366856864,1750519843264,-500.0,0.00028,2]
[366856865,1750519843273,-500.0,0.00028,2]
[366856866,1750519843283,-500.0,0.00028,2]
[366856867,1750519843293,-500.0,0.00028,2]
[366856868,1750519843302,-500.0,0.00028,2]
[366856869,1750519843311,-500.0,0.00028,2]
[366856870,1750519843321,-500.0,0.00028,2]
[366856871,1750519843331,-500.0,0.00028,2]
[366856872,1750519843341,-500.0,0.00028,2]
[366856873,1750519843351,-500.0,0.00028,2]
[366856874,1750519843361,-500.0,0.00028,2]
[366856875,1750519843370,-500.0,0.00028,2]
[366856876,1750519843380,-500.0,0.00028,2]
[366856877,1750519843390,-500.0,0.00028,2]
[366856878,1750519843399,-500.0,0.00028,2]
[366856879,1750519843409,-500.0,0.00028,2]
[366856880,1750519843419,-500.0,0.00028,2]
[366856881,1750519843431,-500.0,0.00028,2]
[366856882,1750519843441,-500.0,0.00028,2]
[366856883,1750519843450,-500.0,0.00028,2]
[366856884,1750519843460,-500.0,0.00028,2]
[366856885,1750519843470,-500.0,0.00028,2]
[366856886,1750519843480,-2999.98,0.00028,2]
[366856887,1750519843490,-278.89,0.00028,2]
[366856888,1750519843500,-3000.0,0.00028,2]
[366856889,1750519843511,-3000.0,0.00028,2]
[366856890,1750519843520,-1787.98,0.00028,2]
[366856891,1750519843530,-2999.98,0.00028,2]
[366856892,1750519843539,-3000.0,0.00028,2]
[366856893,1750519843549,-500.0,0.00028,2]
[366856894,1750519843559,-500.0,0.00028,2]
[366856895,1750519843568,-500.0,0.00028,2]
[366856896,1750519843578,-500.0,0.00028,2]
[366856897,1750519843589,-1422.35436999,0.00028,14]
[366856898,1750519843599,-50778.63014166,0.00028,2]
[366856899,1750519843609,-18905.83044165,0.00028,60]
[366856900,1750519843618,-2161.883809,0.00028,2]
[366856901,1750519843628,-4953.97,0.00028,2]
[366856902,1750519843638,-8450.35,0.00028,2]
[366856903,1750519843647,-150.0,0.00028007,2]
[366856904,1750519843662,-150.0,0.00028013,2]
[366856905,1750519843672,-352.22249226,0.00028014,2]
[366856906,1750519843682,-150.0,0.00028035,2]
[366856907,1750519843692,-150.0,0.00028048,2]
[366856908,1750519843703,-150.0,0.00028065,2]
[366856909,1750519843712,-231.28369723,0.00028081,2]
[366856910,1750519843722,-150.0,0.00028089,2]
[366856911,1750519843735,-150.0,0.00028094,2]
[366856912,1750519843745,-2544.539,0.00028103,2]
[366856913,1750519843755,-150.0,0.00028112,2]
[366856914,1750519843766,-150.0,0.00028117,2]
[366856915,1750519843775,-150.0,0.00028118,2]
[366856916,1750519843784,-9644.05540358,0.00028119,3]
[366856917,1750519843794,-1648.32786,0.00028129,8]
[366856918,1750519843804,-1000.0,0.00028129,4]
[366856919,1750519843814,-1000.0,0.00028129,4]
[366856920,1750519843824,-1000.0,0.00028129,4]
[366856921,1750519843834,-1000.0,0.00028129,4]
[366856922,1750519843846,-1000.0,0.00028129,4]
[366856923,1750519843856,-1000.0,0.00028129,4]
[366856924,1750519843866,-1000.0,0.00028129,4]
[366856925,1750519843876,-1000.0,0.00028129,4]
[366856926,1750519843888,-1000.0,0.00028129,4]
[366856927,1750519843898,-1000.0,0.00028129,4]
[366856928,1750519843907,-1000.0,0.00028129,4]
[366856929,1750519843917,-1000.0,0.00028129,4]
[366856930,1750519843926,-1000.0,0.00028129,4]
[366856931,1750519843936,-1000.0,0.00028129,4]
[366856932,1750519843946,-1000.0,0.00028129,4]
[366856933,1750519843956,-150.0,0.00028132,2]
[366856934,1750519843966,-150.0,0.00028158,2]
[366856935,1750519843976,-150.0,0.00028161,2]
[366856936,1750519843986,-150.0,0.00028169,2]
[366856937,1750519843997,-150.0,0.00028193,2]
[366856938,1750519844007,-694.50846782,0.0002821,18]
[366856939,1750519844016,-150.0,0.00028233,2]
[366856940,1750519844026,-17528.1925855,0.00028239,3]
[366856941,1750519844036,-9644.05540358,0.00028239,3]
[366856942,1750519844046,-638.0,0.00028249,2]
[366856943,1750519844055,-803.0,0.00028249,2]
[366856944,1750519844066,-2005.0,0.00028249,2]
[366856945,1750519844075,-928.0,0.00028249,2]
[366856946,1750519844085,-559.0,0.00028249,2]
[366856947,1750519844096,-1394.418,0.00028249,2]
[366856948,1750519844106,-1161.0,0.00028249,2]
[366856949,1750519844115,-3335.0,0.00028249,2]
[366856950,1750519844125,-444.785,0.00028249,2]
[366856951,1750519844135,-6031.073,0.00028249,2]
[366856952,1750519844145,-156.0,0.00028249,2]